bitfinex/quotes_ETHUSD_20241231
["timestamp","ask_amount","ask_price","bid_price","bid_amount"]
[1735608828175,0.769,3336.3,3335.7,2.99784]
[1735608828377,0.769,3336.3,3335.4,2.99813]
[1735608828586,0.376615,3336.2,3335.0,3.79994]
[1735608828750,0.769,3336.3,3335.7,2.99778]
[1735608828952,0.769,3336.3,3335.8,2.9977]
[1735608829280,0.769,3336.3,3335.6,2.99792]
[1735608829436,0.769,3336.3,3335.7,2.99783]
[1735608829637,0.769,3336.3,3336.0,2.99758]
[1735608830074,1.2368687,3336.5,3336.1,2.99749]
[1735608830583,1.2368687,3336.5,3335.6,0.8015]
[1735608830739,1.2368687,3336.5,3335.8,2.99778]
[1735608831079,1.2368687,3336.8,3336.7,2.99697]
[1735608831949,1.2368687,3337.3,3336.9,2.99671]
[1735608832354,1.2368687,3337.3,3336.7,2.99694]
[1735608832783,0.7803,3337.4,3336.7,2.99694]
[1735608833484,1.46754718,3337.4,3336.7,2.99694]
[1735608833839,2.70441588,3337.4,3336.7,2.99694]
[1735608835364,1.46754718,3337.4,3336.3,0.8148]
[1735608835573,1.46754718,3337.4,3336.6,2.99704]
[1735608837358,0.7803,3337.4,3336.6,2.997]
[1735608838036,0.7803,3337.4,3337.1,2.99656]
[1735608838242,1.2368687,3337.6,3337.1,2.99656]
[1735608839174,1.2368687,3337.6,3336.9,3.81157]
[1735608839371,0.7803,3337.7,3336.9,2.99677]
[1735608839762,0.0255982,3337.6,3336.7,2.99695]
[1735608840305,0.7803,3337.5,3336.5,2.99711]
[1735608840465,2.99652,3337.3,3336.1,3.81227]
[1735608840671,0.7803,3337.1,3336.2,2.99733]
[1735608841001,0.7803,3337.1,3336.1,0.8148]
[1735608841314,0.03052812,3337.0,3336.7,2.99688]
[1735608841528,0.7803,3337.1,3336.7,2.99688]
[1735608841825,0.03052812,3337.0,3336.7,3.296568]
[1735608842229,0.7803,3337.4,3336.7,3.296568]
[1735608842457,0.02950897,3336.9,3336.2,3.0]
[1735608842729,0.7803,3337.4,3336.5,2.99714]
[1735608842871,0.02949437,3336.8,3336.5,2.99714]
[1735608843071,0.0255982,3337.3,3336.5,2.99714]
[1735608843271,0.40581302,3337.3,3336.5,2.99714]
[1735608843472,0.02949437,3337.2,3336.2,3.0]
[1735608843783,0.7803,3336.9,3336.0,2.99756]
[1735608843968,0.02949437,3336.8,3336.1,2.99747]
[1735608844443,0.7803,3336.7,3335.8,2.99772]
[1735608844565,0.7803,3336.6,3335.6,2.99793]
[1735608844771,0.02909636,3336.5,3335.9,2.99766]
[1735608845639,0.02909636,3336.5,3335.6,0.299793]
[1735608845837,0.02909636,3336.5,3335.8,2.99778]
[1735608845967,0.02909636,3336.5,3335.9,3.02758153]
[1735608846172,0.02909636,3336.5,3335.9,2.99767]
[1735608846414,0.02909636,3336.5,3335.7,2.99784]
[1735608846674,0.02909636,3336.5,3335.8,0.02997388]
[1735608846896,0.02909636,3336.5,3336.4,2.99724]
[1735608847210,0.8139,3336.8,3336.2,2.99739]
[1735608847370,0.02909636,3336.5,3336.2,2.99739]
[1735608847574,0.8139,3336.8,3336.2,2.99739]
[1735608847777,0.02909636,3336.7,3336.2,2.99739]
[1735608848287,0.02909636,3336.7,3335.8,3.80413]
[1735608848488,0.02909636,3336.7,3336.3,2.99733]
[1735608848684,0.8139,3336.8,3336.3,2.99733]
[1735608849006,0.8139,3336.8,3335.2,3.8064]
[1735608849207,0.02909636,3336.7,3335.7,2.99779]
[1735608849389,0.02909636,3336.7,3335.3,2.99819]
[1735608849390,0.02909636,3336.7,3335.8,2.99778]
[1735608849919,0.02909636,3336.7,3335.9,2.99768]
[1735608850430,0.8139,3336.6,3335.2,0.8064]
[1735608850580,0.8394982,3336.5,3335.5,2.99803]
[1735608850772,0.8139,3336.1,3335.1,2.99839]
[1735608850968,0.8139,3336.1,3335.3,2.9982]
[1735608851173,0.02909636,3336.0,3335.3,2.9982]
[1735608852313,0.02909636,3336.0,3335.4,0.02997934]
[1735608852478,0.02909636,3336.0,3335.8,2.99778]
[1735608852677,0.8139,3336.1,3335.8,2.99778]
[1735608852884,0.8139,3336.7,3335.6,0.8064]
[1735608853104,0.02909636,3336.0,3335.9,2.99769]
[1735608853308,0.8139,3336.7,3336.3,2.99731]
[1735608853632,0.02909636,3336.6,3336.5,2.99714]
[1735608853786,1.2368687,3337.1,3337.0,2.9967]
[1735608854127,1.26596506,3337.1,3337.0,2.9967]
[1735608855812,1.26596506,3337.1,3336.8,2.99685]
[1735608855999,1.26596506,3337.1,3336.9,2.99677]
[1735608857788,1.26596506,3337.1,3336.7,3.4072984]
[1735608857992,1.26596506,3337.1,3336.9,2.99677]
[1735608858189,1.26596506,3337.1,3336.6,2.99697]
[1735608858419,1.26596506,3337.1,3336.7,2.99696]
[1735608858616,1.26596506,3337.1,3336.7,2.99694]
[1735608859494,0.02909636,3337.1,3336.7,2.99694]
[1735608859929,2.0507687,3337.5,3336.7,2.99694]
[1735608860125,0.02843296,3337.0,3336.7,2.99694]
[1735608860331,0.02843296,3337.0,3336.7,3.3266054]
[1735608860534,2.0507687,3337.5,3336.7,3.3266054]
[1735608860719,2.0507687,3337.5,3336.7,2.99694]
[1735608860894,0.02843296,3337.4,3336.7,2.99694]
[1735608861097,1.26530166,3337.4,3336.7,2.99694]
[1735608861943,1.42534355,3337.3,3336.7,2.99694]
[1735608862434,0.02843296,3337.2,3337.1,2.99661]
[1735608862731,1.42534355,3337.3,3337.2,2.99652]
[1735608863132,1.2368687,3337.4,3337.3,2.99643]
[1735608863337,1.2368687,3337.4,3337.3,3.79923]
[1735608863630,8.7e-06,3337.4,3337.3,4.34923]
[1735608864197,8.7e-06,3337.4,3337.3,7.34923]
[1735608864393,0.03077025,3337.4,3337.3,8.76706598]
[1735608864808,0.03076155,3337.4,3337.3,8.76706598]
[1735608865014,1.85530306,3338.4,3338.0,2.99578]
[1735608865218,1.85530306,3338.4,3338.3,2.99553]
[1735608865958,1.85530306,3338.4,3337.9,2.99589]
[1735608866104,1.85530306,3338.4,3338.0,0.679459]
[1735608866769,1.85530306,3339.0,3338.0,3.675229]
[1735608866906,0.7769,3338.8,3338.0,2.99577]
[1735608869547,0.7769,3338.8,3337.8,2.99596]
[1735608869778,0.7769,3338.8,3337.5,0.8028]
[1735608870078,0.7769,3338.8,3338.0,2.99576]
[1735608870286,0.7769,3338.8,3338.0,3.295336]
[1735608872496,0.7769,3338.8,3338.0,0.299576]
[1735608872655,0.7769,3338.8,3338.3,2.99552]
[1735608873096,0.7769,3338.8,3338.4,2.99544]
[1735608874173,3.0,3339.3,3338.4,2.99544]
[1735608874373,2.99464,3339.3,3338.2,3.7984]
[1735608874638,3.8395718,3339.3,3338.2,4.477823]
[1735608875441,2.99493,3339.0,3338.0,2.99579]
[1735608875649,2.99511,3338.8,3337.8,3.82854]
[1735608875934,3.78037,3338.3,3337.2,3.82911]
[1735608876128,3.78037,3338.3,3337.3,3.0]
[1735608876746,3.71202434,3338.7,3336.9,2.9967]
[1735608876747,0.7848,3338.0,3336.9,2.9967]
[1735608876899,3.78062,3338.0,3337.0,3.40954098]
[1735608877593,2.99589,3337.9,3337.0,0.38293]
[1735608877934,2.99589,3337.9,3336.8,3.82947]
[1735608878080,0.7848,3338.0,3336.8,3.82947]
[1735608878426,2.99601,3337.8,3336.8,3.82947]
[1735608879316,0.02853745,3337.7,3336.8,3.82947]
[1735608881667,0.7848,3337.6,3336.9,2.99671]
[1735608881828,0.7848,3337.9,3337.0,3.379591]
[1735608882193,0.7848,3337.9,3337.2,2.99651]
[1735608882194,0.02853745,3337.5,3337.2,2.99651]
[1735608882338,0.7848,3337.9,3337.2,2.99651]
[1735608882676,0.02775575,3337.8,3337.2,2.99651]
[1735608883971,0.02775575,3337.8,3337.0,0.382931]
[1735608884111,0.02775575,3337.8,3336.8,0.8326]
[1735608884312,2.99618,3337.6,3336.7,3.0]
[1735608884513,2.99618,3337.6,3336.8,0.682963]
[1735608884751,0.02775575,3337.5,3336.8,0.682963]
[1735608885459,2.99659,3337.2,3336.1,2.99747]
[1735608885670,2.99659,3337.2,3336.2,0.8326]
[1735608885833,0.02775575,3337.1,3336.2,3.8326]
[1735608886032,2.99659,3337.2,3336.3,0.683007]
[1735608886360,2.99659,3337.2,3336.2,3.8326]
[1735608886361,0.8103982,3337.4,3335.8,0.8326]
[1735608886572,2.99675,3337.0,3335.9,2.99766]
[1735608886764,2.99675,3337.0,3336.0,3.0]
[1735608887058,0.02775575,3336.9,3336.6,2.99704]
[1735608887259,0.02775575,3336.9,3336.4,0.8326]
[1735608887260,0.02775575,3336.9,3336.8,2.99688]
[1735608887460,0.7848,3337.7,3336.7,0.382964]
[1735608887461,1.23868469,3337.6,3336.7,0.382964]
[1735608887644,0.02775575,3336.9,3336.4,0.8326]
[1735608887835,0.0255982,3337.4,3336.4,0.8326]
[1735608888031,0.02775575,3336.8,3336.4,0.8326]
[1735608888251,0.7848,3337.5,3336.0,0.8326]
[1735608888558,0.02775575,3336.7,3336.2,3.0]
[1735608888760,2.99643,3337.3,3336.2,3.0]
[1735608888967,0.02775575,3336.6,3336.2,3.0]
[1735608889260,2.99662,3337.1,3336.2,3.0]
[1735608889461,0.02775575,3336.5,3336.0,3.8326]
[1735608889662,0.7848,3337.0,3336.0,1.21586]
[1735608889862,0.02775575,3336.4,3336.0,1.21586]
[1735608890039,0.7848,3337.0,3336.0,1.21586]
[1735608890236,0.02775575,3336.3,3336.0,1.21586]
[1735608890452,2.99707,3336.6,3336.0,0.38326]
[1735608890651,0.793,3336.5,3335.4,3.82476]
[1735608890849,0.82075575,3336.5,3335.5,3.0]
[1735608891236,0.82075575,3336.5,3335.4,0.8267]
[1735608891436,0.82075575,3336.5,3335.5,2.99804]
[1735608891761,2.99742,3336.2,3335.1,3.82508]
[1735608891968,2.99742,3336.2,3335.2,3.0]
[1735608891969,0.793,3336.1,3335.2,3.0]
[1735608892163,2.99771,3335.9,3335.1,0.8267]
[1735608892364,0.02775575,3336.0,3334.7,0.8267]
[1735608892605,2.99797,3335.6,3334.8,0.20849096]
[1735608892877,2.99797,3335.6,3334.7,0.8267]
[1735608893081,2.99779,3335.8,3334.7,0.8267]
[1735608893438,2.99787,3335.7,3334.7,0.8267]
[1735608894452,0.0255982,3335.7,3334.7,0.8267]
[1735608894652,3.79431,3335.3,3334.3,0.7661]
[1735608894858,0.796,3335.3,3334.3,0.7661]
[1735608895582,0.796,3335.3,3334.3,3.76521]
[1735608895984,0.796,3335.3,3334.5,2.99893]
[1735608896180,0.796,3335.3,3334.6,0.376503]
[1735608896349,0.796,3335.3,3334.3,3.76521]
[1735608896557,0.796,3335.3,3334.3,0.7661]
[1735608896771,0.796,3335.3,3334.4,2.99903]
[1735608897356,0.796,3335.3,3334.3,0.7661]
[1735608898195,0.796,3335.3,3334.4,3.0]
[1735608898359,0.796,3335.3,3334.5,0.676517]
[1735608899497,2.99834,3335.2,3334.3,0.7661]
[1735608899699,0.796,3335.3,3334.3,0.7661]
[1735608900201,3.79423,3335.3,3334.3,3.7652]
[1735608900701,0.796,3335.3,3334.3,3.7652]
[1735608900901,0.796,3335.3,3334.3,0.7661]
[1735608901102,3.79427,3335.3,3334.4,0.37661]
[1735608901873,0.796,3335.3,3334.4,0.37661]
[1735608903203,0.796,3335.7,3334.4,0.37661]
[1735608903426,0.796,3336.1,3335.1,2.99839]
[1735608903644,0.796,3336.1,3335.2,0.299839]
[1735608903788,0.39166018,3336.0,3334.8,2.99859]
[1735608904157,0.39166018,3336.0,3335.0,0.7661]
[1735608904276,1.23868469,3336.3,3335.2,0.7661]
[1735608904480,1.23868469,3336.3,3335.5,2.99803]
[1735608904678,1.23868469,3336.3,3335.6,0.299803]
[1735608905006,1.23868469,3336.3,3335.2,0.7661]
[1735608905182,1.23868469,3336.3,3335.3,0.0299761]
[1735608905506,1.23868469,3336.3,3335.2,0.7661]
[1735608905805,0.796,3336.4,3335.2,0.7661]
[1735608906196,0.796,3336.4,3335.3,0.02997612]
[1735608906507,0.796,3336.4,3335.2,0.7661]
[1735608906665,0.796,3336.4,3335.3,0.37661]
[1735608906865,0.796,3336.4,3335.4,2.99811]
[1735608907062,0.796,3336.4,3335.3,0.37661]
[1735608907534,4.18491018,3336.4,3335.3,0.37661]
[1735608907663,3.41459838,3336.3,3335.2,0.7661]
[1735608907867,0.39166018,3336.3,3335.2,0.7661]
[1735608909012,3.0230482,3336.2,3335.2,0.7661]
[1735608909184,2.99745,3336.2,3335.2,0.7661]
[1735608909703,0.8091,3336.0,3334.8,0.7994]
[1735608909917,0.8091,3336.0,3334.8,1.37365779]
[1735608910412,2.99791,3335.7,3334.8,1.37365779]
[1735608910573,0.8091,3335.5,3334.5,0.7994]
[1735608911587,2.99816,3335.4,3334.5,0.7994]
[1735608911832,2.99849,3335.1,3334.4,0.37661]
[1735608912032,0.39166018,3335.3,3334.2,0.7994]
[1735608912033,2.9986,3334.9,3334.2,0.7994]
[1735608912354,0.8091,3334.8,3333.9,1.099351]
[1735608912561,2.99889,3334.6,3333.9,0.7994]
[1735608913672,2.99901,3334.5,3333.9,0.7994]
[1735608914353,2.99878,3334.7,3333.9,0.7994]
[1735608915060,0.8091,3334.8,3333.9,0.7994]
[1735608915222,2.99898,3334.5,3333.9,0.7994]
[1735608915614,0.8091,3334.8,3333.9,0.7994]
[1735608915935,2.9988,3334.7,3333.9,0.7994]
[1735608916120,2.9988,3334.7,3333.9,1.179315]
[1735608918334,2.9988,3334.7,3333.9,0.7994]
[1735608918851,0.8091,3334.8,3333.9,0.7994]
[1735608919169,0.8091,3334.8,3334.0,0.02999019]
[1735608919347,0.8091,3335.6,3334.6,2.99878]
[1735608919670,0.8091,3335.6,3334.8,3.798]
[1735608919819,0.8091,3335.9,3334.8,0.7994]
[1735608920020,0.8091,3335.9,3334.8,3.7994]
[1735608920266,2.06748469,3336.3,3335.5,0.8104]
[1735608920464,2.06748469,3336.3,3335.5,1.191253]
[1735608920675,2.48474307,3336.3,3335.5,0.8104]
[1735608920969,2.99751,3336.1,3335.1,3.8088]
[1735608921547,2.9976,3336.0,3335.1,0.8104]
[1735608921795,3.0231982,3336.0,3335.1,0.8104]
[1735608921969,0.3487375,3336.1,3335.1,1.191297]
[1735608922267,3.3463175,3336.1,3335.1,1.191297]
[1735608923062,0.0255982,3336.0,3335.1,1.191297]
[1735608923377,3.0232082,3336.0,3335.1,0.8104]
[1735608924542,0.8318,3335.7,3334.8,2.99867]
[1735608924780,3.8553182,3335.7,3334.7,0.7836]
[1735608925082,3.0,3335.4,3334.1,0.7836]
[1735608925285,0.8318,3335.0,3334.1,0.7836]
[1735608925485,0.0255982,3334.9,3334.1,0.7836]
[1735608925668,0.8318,3335.0,3334.1,3.7829]
[1735608926543,0.8318,3335.0,3334.2,2.99915]
[1735608926742,0.74039768,3335.3,3334.1,0.7836]
[1735608926743,1.1805375,3335.3,3334.3,3.377325]
[1735608926972,0.0255982,3335.2,3334.1,3.78288]
[1735608927186,2.99854,3335.0,3334.1,0.7836]
[1735608927384,2.99871,3334.8,3334.1,0.7836]
[1735608927545,2.99871,3334.8,3333.7,3.0]
[1735608927546,2.99897,3334.5,3333.7,0.7836]
[1735608927902,0.76599588,3334.7,3333.4,0.02997549]
[1735608927903,3.73918768,3334.7,3333.4,0.02997549]
[1735608928060,0.73149256,3334.6,3333.6,2.99972]
[1735608928401,0.73149256,3334.6,3333.7,2.99966]
[1735608929104,0.39166018,3334.7,3334.0,2.99938]
[1735608929408,0.8318,3334.8,3334.0,2.99932]
[1735608929554,3.8318,3335.1,3334.2,0.7836]
[1735608929749,1.11615001,3335.0,3334.2,0.7836]
[1735608929950,0.0255982,3334.9,3334.2,0.7836]
[1735608930144,0.0255982,3334.9,3333.9,2.99946]
[1735608930757,0.76599588,3334.9,3333.8,0.7836]
[1735608931392,0.74039768,3334.9,3333.8,0.7836]
[1735608931711,4.11465001,3335.0,3333.9,0.37836]
[1735608932329,1.11615001,3335.0,3334.1,2.9993]
[1735608932630,0.08022532,3334.9,3334.0,2.99936]
[1735608932923,0.10582352,3334.9,3334.0,2.99936]
[1735608933251,0.08022532,3334.9,3334.0,2.99936]
[1735608933453,0.08022532,3334.9,3334.1,0.416132]
[1735608934359,2.99875,3334.8,3333.8,0.7836]
[1735608934560,2.99875,3334.8,3333.8,3.78315]
[1735608934790,0.07868885,3334.7,3333.8,3.78315]
[1735608935970,0.07868885,3334.7,3333.9,2.99948]
[1735608936703,0.7999,3334.6,3333.5,3.8213]
[1735608936997,0.7999,3334.6,3333.8,2.99957]
[1735608937401,0.07868885,3334.5,3333.8,2.99957]
[1735608937693,0.07868885,3334.5,3333.5,0.8213]
[1735608937898,0.07868885,3334.5,3333.9,2.99941]
[1735608938758,0.07868885,3334.5,3334.0,2.99937]
[1735608939097,0.07868885,3334.5,3334.1,0.299937]
[1735608939301,1.23868469,3334.8,3334.1,0.299937]
[1735608939502,0.07608665,3334.7,3334.0,2.99937]
[1735608939664,0.10168485,3334.7,3333.5,0.8213]
[1735608939863,4.53923768,3334.6,3333.5,3.82114]
[1735608940087,0.0255982,3334.5,3333.5,3.82114]
[1735608940259,0.07597569,3334.4,3333.6,2.99973]
[1735608940460,0.07597569,3334.4,3333.5,0.8213]
[1735608940670,0.7999,3334.6,3334.0,2.99931]
[1735608940870,1.49122741,3334.5,3334.0,2.99931]
[1735608941112,1.49122741,3334.5,3334.0,3.299241]
[1735608942622,0.07597569,3334.5,3334.0,3.299241]
[1735608946578,0.07597569,3334.5,3334.4,2.99904]
[1735608946840,0.07597569,3334.5,3334.4,7.37034]
[1735608947021,1.85530306,3335.0,3334.9,0.55]
[1735608947325,0.35605306,3335.0,3334.9,11.39654812]
[1735608947520,2.47373741,3335.8,3335.7,2.99787]
[1735608947678,0.7999,3336.6,3335.9,2.99768]
[1735608948520,0.7999,3336.6,3335.9,0.381898]
[1735608948730,0.7999,3336.6,3336.1,2.99747]
[1735608949083,0.7999,3336.6,3335.9,2.99767]
[1735608949288,0.7999,3336.6,3335.7,0.8213]
[1735608949484,0.7999,3336.6,3335.6,2.9979]
[1735608949485,0.8254982,3336.6,3335.6,2.9979]
[1735608949723,0.41634802,3336.5,3335.6,2.9979]
[1735608950331,0.41634802,3336.5,3335.5,2.99801]
[1735608950620,0.7999,3336.6,3336.0,2.99752]
[1735608951028,0.7999,3336.6,3335.3,3.8213]
[1735608951230,0.7999,3336.6,3335.8,2.99775]
[1735608951401,0.7999,3336.6,3335.3,3.8213]
[1735608951589,0.7999,3336.6,3335.9,2.99764]
[1735608952427,0.7999,3336.6,3335.3,3.8213]
[1735608952630,0.7999,3336.6,3335.8,2.99776]
[1735608953144,0.7999,3336.6,3335.9,2.99768]
[1735608954107,0.7999,3336.6,3336.0,2.99759]
[1735608954308,0.07217348,3336.5,3335.5,2.74246517]
[1735608954530,0.07217348,3336.5,3335.5,2.77243587]
[1735608954843,0.07217348,3336.5,3335.6,0.72501124]
[1735608955337,0.07217348,3336.5,3336.1,2.99742]
[1735608955744,0.7908,3336.9,3336.1,2.99742]
[1735608955914,0.07217348,3336.4,3336.1,2.99742]
[1735608956117,0.8163982,3336.9,3335.7,0.7956]
[1735608956426,0.07217348,3336.8,3335.9,2.99766]
[1735608956801,0.07217348,3336.8,3336.0,2.99757]
[1735608957746,0.07217348,3336.8,3335.8,2.74246517]
[1735608957943,0.07217348,3336.8,3336.1,2.74246517]
[1735608958141,0.7908,3337.2,3336.2,0.27424652]
[1735608958343,0.7908,3337.2,3336.7,2.99695]
[1735608958551,0.7908,3337.2,3336.5,0.7956]
[1735608958552,0.07366835,3337.1,3336.5,0.7956]
[1735608958842,0.07366835,3337.1,3336.2,1.06984652]
[1735608959019,0.07366835,3337.1,3336.7,2.99697]
[1735608960734,0.07366835,3337.1,3336.7,0.299697]
[1735608961048,0.07366835,3337.1,3337.0,2.9967]
[1735608961211,0.7908,3337.5,3336.9,0.7956]
[1735608961544,0.07366835,3337.4,3337.1,2.99656]
[1735608961715,0.07366835,3337.4,3337.2,0.02996037]
[1735608961921,0.7908,3337.5,3337.1,2.99656]
[1735608962126,0.07366835,3337.4,3337.1,2.99656]
[1735608962763,0.07366835,3337.4,3337.1,0.379216]
[1735608962976,0.07366835,3337.4,3337.3,2.99643]
[1735608963243,0.7908,3337.9,3337.3,2.99643]
[1735608963607,0.07366835,3337.8,3337.3,2.99643]
[1735608966363,0.07366835,3337.8,3337.4,2.99625]
[1735608966516,0.07366835,3337.8,3337.2,0.7571]
[1735608966720,0.8199,3338.2,3337.3,0.64961752]
[1735608967013,0.07480688,3338.1,3337.4,2.99631]
[1735608968341,0.10040508,3338.1,3337.2,2.9965]
[1735608968541,0.10040508,3338.1,3337.0,2.99668]
[1735608968542,3.07052688,3338.1,3337.0,2.99668]
[1735608968833,0.8199,3337.9,3337.0,2.99668]
[1735608969041,0.41464089,3337.8,3336.6,0.7571]
[1735608969223,0.8199,3337.7,3336.3,0.7571]
[1735608969424,0.8199,3337.3,3336.3,1.13448117]
[1735608969812,0.8199,3337.3,3336.8,2.99685]
[1735608970012,0.07480688,3337.2,3336.8,2.99685]
[1735608970412,0.8199,3337.3,3336.8,2.99685]
[1735608970612,0.07480688,3337.1,3336.5,2.99715]
[1735608970836,0.8199,3337.3,3336.6,0.68740963]
[1735608971042,0.8199,3337.3,3336.7,2.99695]
[1735608971252,2.99593,3337.9,3336.9,2.99678]
[1735608971461,0.8199,3338.0,3337.0,2.99668]
[1735608971658,0.8199,3338.0,3336.9,0.7571]
[1735608971659,0.8199,3338.0,3337.1,2.99658]
[1735608971916,0.07480688,3337.9,3337.1,2.99658]
[1735608972070,0.07480688,3337.9,3337.2,3.40184847]
[1735608972390,0.07480688,3337.9,3337.8,2.99598]
[1735608972665,0.8199,3338.4,3337.8,2.99598]
[1735608972823,1.58733862,3339.1,3337.9,0.78705526]
[1735608973021,0.07480688,3338.3,3338.2,2.99562]
[1735608973222,1.23860112,3339.1,3338.3,2.99552]
[1735608973421,0.07480688,3338.3,3337.7,2.99607]
[1735608973628,0.8199,3338.5,3337.9,2.99586]
[1735608973840,0.8199,3338.5,3338.0,0.299586]
[1735608973841,0.07480688,3338.2,3338.0,0.299586]
[1735608974195,0.8199,3338.5,3338.1,2.99571]
[1735608974852,0.07480688,3338.4,3338.1,2.99571]
[1735608975806,0.8199,3338.8,3338.1,2.99571]
[1735608976006,0.07480688,3338.3,3338.2,2.99562]
[1735608976187,0.8199,3339.2,3338.2,0.7571]
[1735608976364,0.8199,3339.2,3338.3,2.99546]
[1735608976706,0.07480688,3339.1,3338.3,2.99546]
[1735608977968,0.07480688,3339.1,3338.2,0.7571]
[1735608978170,0.07480688,3339.1,3338.7,2.99516]
[1735608978473,0.8199,3339.4,3338.7,2.99516]
[1735608978693,0.07553088,3339.0,3338.7,2.99516]
[1735608979003,0.07553088,3338.9,3338.6,2.74246517]
[1735608979288,0.8199,3339.7,3339.1,2.9948]
[1735608979650,0.07553088,3339.6,3339.1,2.9948]
[1735608979849,0.07553088,3339.6,3338.8,2.99502]
[1735608980051,0.07553088,3339.6,3338.4,3.0]
[1735608980246,1.0009345,3340.9,3339.6,2.74246517]
[1735608980494,1.0009345,3340.9,3339.4,3.0]
[1735608980688,1.0009345,3340.9,3340.1,2.99386]
[1735608982369,1.0009345,3340.9,3339.6,2.74246517]
[1735608982571,1.0009345,3340.9,3339.7,0.87370052]
[1735608983263,1.0009345,3340.9,3340.0,2.994]
[1735608983463,1.0009345,3340.9,3339.7,0.87370052]
[1735608983663,1.0009345,3340.9,3340.1,2.99386]
[1735608984193,1.0009345,3340.9,3340.2,2.9938]
[1735608984495,1.0009345,3340.9,3339.9,2.9941]
[1735608984676,1.0009345,3340.9,3340.5,2.99356]
[1735608984864,1.0009345,3340.9,3340.5,2.99348]
[1735608985581,0.07419428,3340.8,3340.5,2.99348]
[1735608985777,0.07419428,3340.8,3340.5,0.299348]
[1735608987194,0.07419428,3340.8,3340.0,0.8115]
[1735608987378,0.07419428,3340.8,3339.8,3.65519957]
[1735608987379,0.09979248,3340.8,3339.8,3.65519957]
[1735608987583,0.09979248,3340.8,3339.8,2.99416]
[1735608988453,0.09979248,3340.8,3339.7,3.55396517]
[1735608988658,0.07419428,3340.8,3340.3,2.99371]
[1735608988857,0.07419428,3340.8,3340.4,0.299371]
[1735608989204,0.1707345,3340.9,3340.2,2.99381]
[1735608990004,0.07419428,3340.8,3340.0,2.74246517]
[1735608990202,0.07419428,3340.8,3339.8,2.99413]
[1735608990387,0.07419428,3340.8,3340.2,2.99381]
[1735608990881,0.1707345,3340.9,3340.0,2.74246517]
[1735608991088,0.1707345,3340.9,3340.1,3.26815652]
[1735608991311,0.07419428,3340.8,3340.1,0.27424652]
[1735608991735,0.8302,3340.7,3339.7,0.8115]
[1735608992024,0.07465165,3340.6,3339.8,2.99414]
[1735608992226,3.82377,3340.5,3339.4,6.54850517]
[1735608992384,4.21617199,3340.5,3339.4,7.50282969]
[1735608992586,0.07465165,3340.4,3339.4,7.50282969]
[1735608993132,0.07465165,3340.4,3339.5,2.99443]
[1735608994528,0.07465165,3340.4,3339.4,4.50828969]
[1735608994703,0.7947,3340.2,3339.2,2.99464]
[1735608994887,0.0255982,3340.1,3339.1,3.56156517]
[1735608995093,0.07465165,3340.0,3339.1,3.56156517]
[1735608995302,3.06870165,3340.0,3339.1,2.74246517]
[1735608995631,3.06870165,3340.0,3338.8,2.99506]
[1735608995632,0.7664,3339.9,3338.9,3.0]
[1735608995806,0.7664,3339.9,3339.0,2.9949]
[1735608996207,0.07465165,3339.8,3339.0,2.9949]
[1735608996430,0.07465165,3339.8,3339.1,2.74246517]
[1735608996631,0.07465165,3339.8,3339.4,2.99452]
[1735608996800,0.7664,3339.9,3339.4,0.57369852]
[1735608996991,0.7664,3339.9,3339.1,2.74246517]
[1735608997534,0.07725223,3339.8,3339.1,2.74246517]
[1735608998099,0.07725223,3339.8,3339.1,5.73724517]
[1735608998296,0.07725223,3339.8,3339.1,2.74246517]
[1735608999616,0.07725223,3339.8,3339.4,6.50153517]
[1735608999818,0.07725223,3339.8,3339.5,0.65314758]
[1735609000125,0.07413519,3339.7,3339.5,0.65314758]
[1735609000324,0.7664,3340.2,3339.2,2.99469]
[1735609000530,0.07413519,3340.1,3339.2,2.99469]
[1735609000747,0.07413519,3340.1,3339.4,2.74246517]
[1735609001741,0.07413519,3340.1,3339.1,3.50706517]
[1735609001988,0.07413519,3340.1,3339.4,2.74246517]
[1735609002300,0.7664,3340.2,3339.4,2.74246517]
[1735609002718,0.07428293,3340.1,3339.2,0.35070652]
[1735609003045,0.07428293,3340.1,3339.2,3.34540652]
[1735609005334,0.07428293,3340.1,3339.2,0.35070652]
[1735609005547,0.7664,3339.9,3339.1,2.74246517]
[1735609005859,0.07428293,3339.8,3339.1,2.74246517]
[1735609006432,0.09988113,3339.8,3338.8,5.74246517]
[1735609006641,0.7664,3339.6,3338.8,5.74246517]
[1735609006842,0.7664,3339.6,3338.8,6.69269369]
[1735609007049,3.0685387,3339.5,3338.8,0.95022852]
[1735609007223,3.0685387,3339.5,3338.5,5.73779517]
[1735609007426,3.0685387,3339.5,3338.3,2.9955]
[1735609007427,3.76096,3339.4,3338.3,2.9955]
[1735609007629,3.76096,3339.4,3338.4,0.65025652]
[1735609007858,0.0740687,3339.3,3338.4,0.65025652]
[1735609008066,0.0740687,3339.3,3338.5,2.99533]
[1735609008638,0.0740687,3339.3,3338.4,0.65025652]
[1735609008834,0.0740687,3339.3,3338.5,1.01528317]
[1735609009242,3.0687287,3339.3,3338.5,1.01528317]
[1735609012566,2.99492,3339.0,3338.2,2.74246517]
[1735609012775,2.9951,3338.8,3337.9,2.74246517]
[1735609012935,0.7865,3338.7,3337.9,2.74246517]
[1735609013137,0.07310816,3338.6,3338.0,3.65671052]
[1735609013463,0.07310816,3338.6,3338.0,0.65671052]
[1735609013636,0.07310816,3338.6,3337.7,2.99604]
[1735609013835,0.09870636,3338.6,3337.6,2.74246517]
[1735609014059,2.99535,3338.5,3337.6,2.74246517]
[1735609014428,0.7865,3338.3,3337.5,0.8286]
[1735609014627,0.7865,3338.3,3337.6,0.65673352]
[1735609014937,0.07283469,3338.2,3337.6,0.65673352]
[1735609015771,0.07283469,3338.2,3337.3,2.74246517]
[1735609015990,0.07283469,3338.2,3337.3,5.73887517]
[1735609019272,0.07283469,3338.2,3337.5,2.99623]
[1735609020586,0.7865,3338.1,3336.9,5.74246517]